lending/lending_fUSD_20241007
["ID","MTS","AMOUNT","RATE_DAILY","PERIOD"]
[340009411,1728328244316,-11902.12850468,0.00037973,2]
[340009413,1728328244327,-160.316599,0.00037975,2]
[340009415,1728328244336,-150.45,0.0003799,2]
[340009417,1728328244345,-150.0,0.00037999,2]
[340009419,1728328244354,-48754.16754851,0.00038,38]
[340009421,1728328244363,-718.65,0.00038,14]
[340009430,1728328244444,-150.0,0.00038008,7]
[340009432,1728328244453,-205.0,0.0003806,2]
[340009434,1728328244463,-150.0,0.0003808,7]
[340009436,1728328244472,-150.0,0.00038095,7]
[340009438,1728328244481,-150.0,0.00038104,7]
[340009440,1728328244490,-150.0,0.00038182,7]
[340009442,1728328244500,-150.0,0.0003827,7]
[340009444,1728328244509,-19314.4922208,0.00038308,2]
[340009446,1728328244521,-11406.2793788,0.00038308,2]
[340009448,1728328244531,-150.0,0.00038309,7]
[340009450,1728328244540,-150.0,0.00038321,7]
[340009452,1728328244550,-150.45,0.00038324,2]
[340009454,1728328244559,-5449.0682904,0.00038334,2]
[340009456,1728328244569,-936.5145618,0.00038334,2]
[340009458,1728328244580,-1535.6355445,0.00038334,2]
[340009460,1728328244589,-62460.1919058,0.00038334,2]
[340009462,1728328244599,-503.89346476,0.00038356,120]
[340009464,1728328244608,-504.71945615,0.00038356,120]
[340009466,1728328244618,-500.0,0.00038356,120]
[340009468,1728328244627,-498.51385997,0.00038356,120]
[340009470,1728328244637,-500.0,0.00038356,120]
[340009472,1728328244647,-519.5694034,0.00038356,120]
[340009474,1728328244656,-505.911727,0.00038356,120]
[340009476,1728328244665,-503.67813402,0.00038356,120]
[340009478,1728328244674,-500.0,0.00038356,120]
[340009480,1728328244684,-502.9928926,0.00038356,120]
[340009482,1728328244693,-502.00422224,0.00038356,120]
[340009484,1728328244702,-503.0447865,0.00038356,120]
[340009486,1728328244712,-500.0,0.00038356,120]
[340009488,1728328244723,-505.04545383,0.00038356,120]
[340009490,1728328244732,-503.01898047,0.00038356,120]
[340009492,1728328244742,-500.0,0.00038356,120]
[340009494,1728328244751,-503.35002119,0.00038356,120]
[340009496,1728328244760,-504.96943094,0.00038356,120]
[340009498,1728328244770,-501.48392858,0.00038356,120]
[340009500,1728328244779,-503.4435559,0.00038356,120]
[340009502,1728328244789,-499.03579516,0.00038356,120]
[340009504,1728328244798,-500.0,0.00038356,120]
[340009506,1728328244808,-500.0,0.00038356,120]
[340009508,1728328244818,-505.89286113,0.00038356,120]
[340009510,1728328244828,-501.24609971,0.00038356,120]
[340009512,1728328244838,-501.7686733,0.00038356,120]
[340009514,1728328244847,-501.84618034,0.00038356,120]
[340009516,1728328244857,-504.24322453,0.00038356,120]
[340009518,1728328244867,-503.62733122,0.00038356,120]
[340009520,1728328244877,-505.18810221,0.00038356,120]
[340009522,1728328244886,-504.77608276,0.00038356,120]
[340009524,1728328244896,-216.1723272,0.00038356,120]
[340009526,1728328244905,-503.79599328,0.00038356,120]
[340009528,1728328244915,-504.82558479,0.00038356,120]
[340009530,1728328244924,-503.24924241,0.00038356,120]
[340009532,1728328244933,-500.91501227,0.00038356,120]
[340009534,1728328244943,-502.9919169,0.00038356,120]
[340009536,1728328244953,-496.80086826,0.00038356,120]
[340009537,1728328244962,-505.92966878,0.00038356,120]
[340009539,1728328244972,-500.0,0.00038356,120]
[340009541,1728328244981,-501.85577567,0.00038356,120]
[340009543,1728328244990,-1003.27476462,0.00038356,120]
[340009545,1728328245000,-505.52799177,0.00038356,120]
[340009547,1728328245009,-502.1292701,0.00038356,120]
[340009549,1728328245019,-502.13618563,0.00038356,120]
[340009551,1728328245028,-504.01688986,0.00038356,120]
[340009553,1728328245037,-501.9122457,0.00038356,120]
[340009555,1728328245047,-500.0,0.00038356,2]
[340009557,1728328245056,-506.88334547,0.00038356,120]
[340009559,1728328245065,-475.68191051,0.00038356,120]
[340009561,1728328245076,-500.0,0.00038356,120]
[340009563,1728328245085,-500.0,0.00038356,120]
[340009565,1728328245095,-500.0,0.00038356,120]
[340009567,1728328245104,-500.0,0.00038356,120]
[340009569,1728328245115,-507.0307474,0.00038356,120]
[340009571,1728328245126,-508.63173106,0.00038356,120]
[340009573,1728328245136,-511.06217967,0.00038356,120]
[340009575,1728328245146,-500.0,0.00038356,120]
[340009577,1728328245156,-504.2570096,0.00038356,120]
[340009580,1728328245167,-505.4623156,0.00038356,120]
[340009581,1728328245176,-500.0,0.00038356,120]
[340009582,1728328245186,-505.03617365,0.00038356,120]
[340009583,1728328245195,-510.72357544,0.00038356,120]
[340009584,1728328245207,-500.0,0.00038356,120]
[340009585,1728328245217,-505.35479009,0.00038356,120]
[340009586,1728328245227,-506.30283309,0.00038356,120]
[340009587,1728328245236,-500.0,0.00038356,120]
[340009588,1728328245246,-501.35588993,0.00038356,120]
[340009589,1728328245255,-391.96485973,0.00038356,120]
[340009590,1728328245264,-505.91543404,0.00038356,120]
[340009591,1728328245274,-503.68773273,0.00038356,120]
[340009592,1728328245283,-500.0,0.00038356,120]
[340009593,1728328245293,-505.22980061,0.00038356,120]
[340009594,1728328245303,-312.1807471,0.00038356,120]
[340009595,1728328245312,-501.74751239,0.00038356,120]
[340009596,1728328245321,-500.0,0.00038356,120]
[340009597,1728328245333,-500.0,0.00038356,120]
[340009598,1728328245342,-500.0,0.00038356,120]
[340009599,1728328245352,-506.58648746,0.00038356,120]
[340009600,1728328245361,-500.0,0.00038356,120]
[340009601,1728328245371,-505.66831108,0.00038356,120]
[340009602,1728328245382,-504.1819896,0.00038356,120]
[340009603,1728328245391,-500.0,0.00038356,120]
[340009604,1728328245401,-500.0,0.00038356,120]
[340009605,1728328245410,-500.0,0.00038356,120]
[340009606,1728328245419,-285.46595288,0.00038356,120]
[340009607,1728328245428,-500.0,0.00038356,120]
[340009608,1728328245437,-500.0,0.00038356,120]
[340009609,1728328245446,-500.0,0.00038356,120]
[340009610,1728328245455,-403.18354848,0.00038356,120]
[340009611,1728328245464,-500.0,0.00038356,120]
[340009612,1728328245474,-500.0,0.00038356,120]
[340009613,1728328245483,-505.11070949,0.00038356,120]
[340009614,1728328245493,-506.0115902,0.00038356,120]
[340009615,1728328245502,-500.0,0.00038356,120]
[340009616,1728328245511,-500.0,0.00038356,120]
[340009617,1728328245520,-503.31220498,0.00038356,7]
[340009618,1728328245530,-500.0,0.00038356,120]
[340009619,1728328245539,-504.20728943,0.00038356,120]
[340009620,1728328245548,-500.0,0.00038356,120]
[340009621,1728328245558,-501.51404255,0.00038356,120]
[340009622,1728328245567,-503.90889501,0.00038356,120]
[340009624,1728328245579,-500.0,0.00038356,120]
[340009626,1728328245588,-504.87855474,0.00038356,120]
[340009627,1728328245598,-500.0,0.00038356,120]
[340009628,1728328245608,-500.0,0.00038356,120]
[340009629,1728328245617,-500.0,0.00038356,120]
[340009630,1728328245627,-500.0,0.00038356,120]
[340009631,1728328245636,-349.84586417,0.00038356,120]
[340009632,1728328245646,-501.12315801,0.00038356,120]
[340009633,1728328245655,-647.85536374,0.00038356,120]
[340009634,1728328245732,-506.5539568,0.00038356,120]
[340009635,1728328245741,-500.0,0.00038356,120]
[340009636,1728328245751,-500.0,0.00038356,120]
[340009637,1728328245760,-500.0,0.00038356,120]
[340009638,1728328245769,-500.0,0.00038356,120]
[340009639,1728328245778,-500.0,0.00038356,120]
[340009640,1728328245787,-500.0,0.00038356,120]
[340009641,1728328245796,-500.0,0.00038356,120]
[340009642,1728328245805,-503.56729321,0.00038356,120]
[340009643,1728328245814,-500.0,0.00038356,120]
[340009644,1728328245824,-317.63316418,0.00038356,120]
[340009645,1728328245838,-501.25893133,0.00038356,120]
[340009646,1728328245847,-500.0,0.00038356,120]
[340009647,1728328245856,-500.0,0.00038356,120]
[340009648,1728328245866,-501.20586234,0.00038356,120]
[340009649,1728328245876,-500.0,0.00038356,120]
[340009650,1728328245887,-501.96006016,0.00038356,120]
[340009651,1728328245896,-578.58292865,0.00038356,120]
[340009652,1728328245906,-500.0,0.00038356,120]
[340009653,1728328245916,-500.0,0.00038356,120]
[340009654,1728328245925,-502.25128169,0.00038356,120]
[340009655,1728328245935,-503.59799099,0.00038356,120]
[340009656,1728328245944,-441.14444684,0.00038356,120]
[340009657,1728328245954,-500.0,0.00038356,120]
[340009658,1728328245963,-500.0,0.00038356,120]
[340009659,1728328245972,-541.75985658,0.00038356,120]
[340009660,1728328245982,-500.0,0.00038356,120]
[340009661,1728328245992,-150.0,0.00038356,120]
[340009662,1728328246002,-500.0,0.00038356,120]
[340009663,1728328246011,-500.0,0.00038356,120]
[340009664,1728328246020,-505.3560391,0.00038356,120]
[340009665,1728328246029,-500.0,0.00038356,120]
[340009666,1728328246039,-500.0,0.00038356,120]
[340009667,1728328246048,-500.0,0.00038356,120]
[340009668,1728328246057,-500.0,0.00038356,120]
[340009669,1728328246067,-500.0,0.00038356,120]
[340009670,1728328246076,-500.0,0.00038356,120]
[340009671,1728328246091,-500.0,0.00038356,120]
[340009672,1728328246100,-500.0,0.00038356,120]
[340009673,1728328246110,-503.42114389,0.00038356,120]
[340009674,1728328246120,-504.56874144,0.00038356,120]
[340009675,1728328246134,-500.0,0.00038356,120]
[340009676,1728328246143,-500.0,0.00038356,120]
[340009677,1728328246152,-509.04842271,0.00038356,120]
[340009678,1728328246162,-219.08924709,0.00038356,120]
[340009679,1728328246172,-500.0,0.00038356,120]
[340009680,1728328246181,-500.0,0.00038356,120]
[340009681,1728328246191,-500.0,0.00038356,120]
[340009682,1728328246202,-500.0,0.00038356,120]
[340009683,1728328246211,-500.0,0.00038356,2]
[340009684,1728328246221,-500.0,0.00038356,120]
[340009685,1728328246230,-500.0,0.00038356,120]
[340009686,1728328246239,-500.0,0.00038356,120]
[340009687,1728328246248,-500.0,0.00038356,120]
[340009688,1728328246258,-151.0,0.00038356,7]
[340009689,1728328246267,-503.81846459,0.00038356,120]
[340009691,1728328246277,-500.0,0.00038356,120]
[340009693,1728328246287,-500.0,0.00038356,120]
[340009694,1728328246297,-500.0,0.00038356,120]
[340009695,1728328246305,-500.0,0.00038356,120]
[340009696,1728328246315,-500.0,0.00038356,120]
[340009697,1728328246324,-502.83565962,0.00038356,120]
[340009698,1728328246336,-500.0,0.00038356,120]
[340009699,1728328246346,-506.24765332,0.00038356,120]
[340009700,1728328246355,-500.0,0.00038356,120]
[340009701,1728328246365,-500.0,0.00038356,120]
[340009702,1728328246375,-530.58070381,0.00038356,120]
[340009703,1728328246384,-500.0,0.00038356,120]
[340009704,1728328246394,-500.0,0.00038356,120]
[340009705,1728328246403,-500.0,0.00038356,120]
[340009706,1728328246413,-510.85195212,0.00038356,120]
[340009707,1728328246422,-500.0,0.00038356,120]
[340009708,1728328246431,-500.0,0.00038356,120]
[340009709,1728328246441,-526.85,0.00038356,120]
[340009710,1728328246450,-503.8227629,0.00038356,120]
[340009711,1728328246460,-500.0,0.00038356,120]
[340009712,1728328246471,-500.0,0.00038356,120]
[340009713,1728328246481,-506.86998518,0.00038356,120]
[340009714,1728328246491,-500.0,0.00038356,120]
[340009715,1728328246500,-500.0,0.00038356,120]
[340009716,1728328246510,-513.65018952,0.00038356,120]
[340009717,1728328246520,-500.0,0.00038356,120]
[340009718,1728328246530,-502.92135905,0.00038356,120]
[340009719,1728328246540,-500.0,0.00038356,120]
[340009720,1728328246549,-500.0,0.00038356,120]
[340009721,1728328246559,-500.0,0.00038356,120]
[340009722,1728328246568,-500.0,0.00038356,120]
[340009723,1728328246580,-500.0,0.00038356,120]
[340009724,1728328246589,-500.0,0.00038356,120]
[340009725,1728328246598,-500.0,0.00038356,120]
[340009726,1728328246608,-500.0,0.00038356,120]
[340009727,1728328246617,-500.0,0.00038356,120]
[340009728,1728328246626,-546.04647262,0.00038356,120]
[340009729,1728328246635,-501.11096904,0.00038356,120]
[340009730,1728328246645,-508.37813531,0.00038356,120]
[340009731,1728328246654,-506.67045413,0.00038356,120]
[340009732,1728328246664,-500.0,0.00038356,120]
[340009733,1728328246674,-236.50218845,0.00038356,120]
[340009734,1728328246684,-500.0,0.00038356,120]
[340009735,1728328246693,-500.0,0.00038356,120]
[340009736,1728328246702,-502.4369173,0.00038356,120]
[340009737,1728328246711,-500.0,0.00038356,120]
[340009738,1728328246720,-500.0,0.00038356,120]
[340009739,1728328246730,-500.0,0.00038356,120]
[340009740,1728328246739,-500.0,0.00038356,120]
[340009741,1728328246748,-500.0,0.00038356,120]
[340009742,1728328246757,-505.30470193,0.00038356,120]
[340009743,1728328246767,-500.0,0.00038356,120]
[340009744,1728328246777,-500.0,0.00038356,120]
[340009745,1728328246786,-500.0,0.00038356,120]
[340009746,1728328246795,-509.9373008,0.00038356,120]
[340009747,1728328246804,-1250.0,0.00038356,2]
[340009748,1728328246814,-624.64305241,0.00038356,2]
[340009749,1728328246824,-496.90565609,0.00038356,120]
[340009750,1728328246834,-500.0,0.00038356,120]
[340009751,1728328246844,-500.0,0.00038356,120]
[340009754,1728328246853,-500.0,0.00038356,120]
[340009755,1728328246928,-512.33433445,0.00038356,120]
[340009756,1728328246938,-500.0,0.00038356,120]
[340009757,1728328246946,-500.0,0.00038356,120]
[340009758,1728328246956,-500.0,0.00038356,120]
[340009759,1728328246965,-532.45288354,0.00038356,120]
[340009760,1728328246974,-500.0,0.00038356,120]
[340009762,1728328246984,-500.0,0.00038356,120]
[340009763,1728328246993,-500.0,0.00038356,120]
[340009765,1728328247002,-500.0,0.00038356,120]
[340009767,1728328247011,-500.0,0.00038356,120]
[340009769,1728328247020,-500.0,0.00038356,120]
[340009770,1728328247028,-501.90304439,0.00038356,120]
[340009772,1728328247037,-500.0,0.00038356,120]
[340009774,1728328247046,-402.81195277,0.00038356,120]
[340009776,1728328247055,-500.0,0.00038356,120]
[340009778,1728328247065,-536.36583951,0.00038356,120]
[340009780,1728328247074,-501.83567238,0.00038356,120]
[340009782,1728328247084,-524.40785556,0.00038356,120]
[340009784,1728328247093,-500.0,0.00038356,120]
[340009786,1728328247102,-500.0,0.00038356,120]
[340009787,1728328247111,-500.0,0.00038356,120]
[340009789,1728328247121,-500.0,0.00038356,120]
[340009791,1728328247134,-500.0,0.00038356,120]
[340009793,1728328247143,-500.0,0.00038356,120]
[340009795,1728328247153,-500.0,0.00038356,120]
[340009797,1728328247163,-507.49614998,0.00038356,120]
[340009799,1728328247172,-507.01049406,0.00038356,120]
[340009801,1728328247182,-500.0,0.00038356,120]
[340009803,1728328247191,-500.0,0.00038356,120]
[340009805,1728328247203,-507.1612616,0.00038356,120]
[340009807,1728328247212,-546.81,0.00038356,120]
[340009808,1728328247222,-522.00082486,0.00038356,120]
[340009810,1728328247231,-500.0,0.00038356,120]
[340009812,1728328247240,-500.0,0.00038356,120]
[340009814,1728328247250,-500.0,0.00038356,120]
[340009816,1728328247259,-503.61356637,0.00038356,120]
[340009818,1728328247268,-503.19167159,0.00038356,120]
[340009820,1728328247278,-500.0,0.00038356,120]
[340009821,1728328247287,-508.92936313,0.00038356,120]
[340009822,1728328247296,-500.0,0.00038356,2]
[340009823,1728328247306,-500.0,0.00038356,120]
[340009824,1728328247315,-500.0,0.00038356,120]
[340009825,1728328247324,-500.0,0.00038356,120]
[340009826,1728328247334,-500.0,0.00038356,2]
[340009827,1728328247344,-506.93049275,0.00038356,120]
[340009828,1728328247353,-500.0,0.00038356,120]
[340009829,1728328247363,-500.0,0.00038356,120]
[340009830,1728328247373,-500.0,0.00038356,120]
[340009831,1728328247382,-507.53507768,0.00038356,120]
[340009833,1728328247391,-500.0,0.00038356,120]
[340009834,1728328247400,-500.0,0.00038356,120]
[340009836,1728328247409,-500.0,0.00038356,120]
[340009838,1728328247419,-628.05,0.00038356,120]
[340009840,1728328247428,-512.91540414,0.00038356,120]
[340009842,1728328247437,-500.0,0.00038356,120]
[340009844,1728328247446,-500.0,0.00038356,120]
[340009846,1728328247456,-500.0,0.00038356,120]
[340009848,1728328247465,-500.0,0.00038356,120]
[340009850,1728328247475,-500.0,0.00038356,120]
[340009852,1728328247484,-500.0,0.00038356,120]
[340009854,1728328247493,-167.297853,0.00038356,120]
[340009856,1728328247503,-500.0,0.00038356,120]
[340009858,1728328247512,-441.08753192,0.00038356,120]
[340009860,1728328247523,-500.0,0.00038356,120]
[340009862,1728328247532,-500.0,0.00038356,120]
[340009864,1728328247541,-500.0,0.00038356,120]
[340009865,1728328247551,-500.0,0.00038356,120]
[340009868,1728328247561,-1000.0,0.00038356,120]
[340009870,1728328247571,-502.79966441,0.00038356,120]
[340009872,1728328247581,-160.680259,0.00038356,120]
[340009873,1728328247591,-500.0,0.00038356,120]
[340009875,1728328247601,-500.0,0.00038356,120]
[340009877,1728328247611,-500.0,0.00038356,120]
[340009879,1728328247621,-500.0,0.00038356,120]
[340009881,1728328247631,-504.82577192,0.00038356,120]
[340009883,1728328247641,-151.989208,0.00038356,120]
[340009885,1728328247651,-500.0,0.00038356,120]
[340009887,1728328247660,-508.82543332,0.00038356,120]
[340009889,1728328247670,-500.0,0.00038356,120]
[340009891,1728328247679,-500.0,0.00038356,120]
[340009893,1728328247689,-500.0,0.00038356,120]
[340009895,1728328247700,-503.2064267,0.00038356,120]
[340009897,1728328247709,-500.0,0.00038356,120]
[340009899,1728328247719,-500.0,0.00038356,120]
[340009901,1728328247728,-500.0,0.00038356,120]
[340009903,1728328247737,-503.18247357,0.00038356,120]
[340009905,1728328247747,-500.0,0.00038356,120]
[340009907,1728328247756,-505.45831761,0.00038356,120]
[340009908,1728328247765,-1790.58,0.00038356,120]
[340009910,1728328247775,-373.78326625,0.00038356,120]
[340009912,1728328247784,-500.0,0.00038356,120]
[340009914,1728328247794,-500.0,0.00038356,120]
[340009916,1728328247804,-498.085514,0.00038356,120]
[340009918,1728328247813,-500.0,0.00038356,120]
[340009920,1728328247823,-505.33104089,0.00038356,120]
[340009922,1728328247833,-500.0,0.00038356,120]
[340009924,1728328247842,-504.71878902,0.00038356,120]
[340009926,1728328247851,-500.0,0.00038356,120]
[340009928,1728328247861,-500.0,0.00038356,30]
[340009930,1728328247871,-500.0,0.00038356,120]
[340009932,1728328247880,-503.33922963,0.00038356,120]
[340009934,1728328247889,-500.0,0.00038356,120]
[340009936,1728328247899,-621.73,0.00038356,120]
[340009938,1728328247908,-496.47078569,0.00038356,120]
[340009940,1728328247918,-500.0,0.00038356,120]
[340009942,1728328247927,-500.0,0.00038356,3]
[340009944,1728328247936,-500.0,0.00038356,120]
[340009951,1728328248008,-282.95528939,0.00038356,120]
[340009953,1728328248018,-500.0,0.00038356,120]
[340009955,1728328248028,-500.0,0.00038356,120]
[340009957,1728328248037,-500.0,0.00038356,120]
[340009959,1728328248047,-500.0,0.00038356,120]
[340009961,1728328248056,-505.52044745,0.00038356,120]
[340009963,1728328248065,-519.76022684,0.00038356,120]
[340009965,1728328248075,-500.0,0.00038356,120]
[340009967,1728328248085,-500.0,0.00038356,120]
[340009969,1728328248095,-500.0,0.00038356,120]
[340009971,1728328248105,-500.0,0.00038356,120]
[340009973,1728328248115,-500.0,0.00038356,120]
[340009975,1728328248126,-502.58841654,0.00038356,120]
[340009977,1728328248136,-500.0,0.00038356,120]
[340009979,1728328248145,-150.0,0.00038356,120]
[340009981,1728328248154,-500.0,0.00038356,120]
[340009983,1728328248165,-500.0,0.00038356,120]
[340009984,1728328248175,-507.74481439,0.00038356,120]
[340009987,1728328248184,-500.0,0.00038356,120]
[340009989,1728328248194,-500.0,0.00038356,120]
[340009990,1728328248206,-500.0,0.00038356,120]
[340009992,1728328248215,-500.0,0.00038356,120]
[340009994,1728328248225,-500.0,0.00038356,120]
[340009997,1728328248234,-500.0,0.00038356,120]
[340009998,1728328248244,-500.0,0.00038356,120]
[340010000,1728328248254,-507.66614467,0.00038356,120]
[340010002,1728328248263,-500.0,0.00038356,120]
[340010004,1728328248273,-597.06795625,0.00038356,120]
[340010006,1728328248282,-500.0,0.00038356,120]
[340010008,1728328248292,-500.0,0.00038356,120]
[340010010,1728328248302,-500.0,0.00038356,120]
[340010013,1728328248311,-500.0,0.00038356,120]
[340010015,1728328248321,-500.0,0.00038356,120]
[340010017,1728328248331,-500.0,0.00038356,120]
[340010019,1728328248340,-500.0,0.00038356,120]
[340010021,1728328248350,-500.0,0.00038356,120]
[340010022,1728328248360,-503.58807614,0.00038356,120]
[340010024,1728328248369,-500.0,0.00038356,120]
[340010026,1728328248379,-641.52,0.00038356,120]
[340010028,1728328248388,-500.0,0.00038356,120]
[340010030,1728328248397,-500.0,0.00038356,120]
[340010032,1728328248407,-500.0,0.00038356,120]
[340010034,1728328248416,-500.0,0.00038356,120]
[340010036,1728328248426,-500.0,0.00038356,120]
[340010038,1728328248435,-500.0,0.00038356,120]
[340010040,1728328248445,-500.0,0.00038356,120]
[340010042,1728328248454,-500.0,0.00038356,120]
[340010044,1728328248464,-500.0,0.00038356,120]
[340010046,1728328248474,-500.0,0.00038356,120]
[340010048,1728328248483,-500.0,0.00038356,120]
[340010050,1728328248492,-500.0,0.00038356,120]
[340010052,1728328248502,-500.0,0.00038356,120]
[340010054,1728328248511,-500.0,0.00038356,120]
[340010056,1728328248521,-478.85613638,0.00038356,120]
[340010058,1728328248531,-500.0,0.00038356,120]
[340010060,1728328248540,-500.0,0.00038356,120]
[340010062,1728328248549,-500.0,0.00038356,120]
[340010064,1728328248558,-500.0,0.00038356,120]
[340010066,1728328248568,-500.0,0.00038356,120]
[340010068,1728328248577,-500.0,0.00038356,120]
[340010070,1728328248587,-500.0,0.00038356,120]
[340010072,1728328248597,-506.72590087,0.00038356,120]
[340010074,1728328248606,-500.0,0.00038356,120]
[340010076,1728328248616,-500.0,0.00038356,120]
[340010078,1728328248625,-500.0,0.00038356,120]
[340010080,1728328248634,-500.0,0.00038356,120]
[340010082,1728328248644,-500.0,0.00038356,120]
[340010084,1728328248654,-500.0,0.00038356,120]
[340010086,1728328248664,-500.0,0.00038356,120]
[340010088,1728328248673,-500.0,0.00038356,120]
[340010090,1728328248683,-500.0,0.00038356,120]
[340010092,1728328248692,-500.0,0.00038356,120]
[340010094,1728328248701,-568.89403481,0.00038356,120]
[340010096,1728328248711,-500.0,0.00038356,120]
[340010098,1728328248720,-500.0,0.00038356,120]
[340010100,1728328248729,-534.63229472,0.00038356,120]
[340010102,1728328248738,-500.0,0.00038356,120]
[340010103,1728328248747,-500.0,0.00038356,120]
[340010106,1728328248757,-542.15017925,0.00038356,120]
[340010107,1728328248766,-500.0,0.00038356,120]
[340010109,1728328248775,-503.52563218,0.00038356,90]
[340010111,1728328248784,-500.0,0.00038356,120]
[340010113,1728328248793,-500.0,0.00038356,120]
[340010115,1728328248803,-500.0,0.00038356,120]
[340010117,1728328248813,-500.0,0.00038356,120]
[340010119,1728328248822,-500.0,0.00038356,120]
[340010121,1728328248832,-500.0,0.00038356,120]
[340010123,1728328248841,-500.0,0.00038356,120]
[340010125,1728328248850,-500.0,0.00038356,120]
[340010127,1728328248860,-500.0,0.00038356,120]
[340010129,1728328248870,-500.0,0.00038356,120]
[340010131,1728328248879,-500.0,0.00038356,120]
[340010133,1728328248888,-514.98531714,0.00038356,120]
[340010135,1728328248897,-309.57615299,0.00038356,120]
[340010137,1728328248907,-500.0,0.00038356,120]
[340010138,1728328248916,-500.0,0.00038356,120]
[340010139,1728328248925,-505.61260918,0.00038356,120]
[340010140,1728328248935,-500.0,0.00038356,120]
[340010141,1728328248944,-500.0,0.00038356,120]
[340010144,1728328249014,-500.0,0.00038356,120]
[340010146,1728328249023,-505.59403916,0.00038356,120]
[340010148,1728328249033,-500.0,0.00038356,120]
[340010150,1728328249041,-500.96580179,0.00038356,120]
[340010152,1728328249051,-504.00914819,0.00038356,120]
[340010154,1728328249060,-500.0,0.00038356,120]
[340010156,1728328249069,-501.84061749,0.00038356,120]
[340010158,1728328249078,-500.0,0.00038356,120]
[340010160,1728328249087,-500.0,0.00038356,120]
[340010162,1728328249096,-500.0,0.00038356,120]
[340010164,1728328249105,-500.0,0.00038356,120]
[340010165,1728328249116,-500.0,0.00038356,120]
[340010167,1728328249128,-500.0,0.00038356,120]
[340010169,1728328249137,-500.0,0.00038356,120]
[340010171,1728328249146,-500.0,0.00038356,120]
[340010173,1728328249155,-500.0,0.00038356,120]
[340010175,1728328249165,-500.0,0.00038356,120]
[340010177,1728328249175,-540.4593263,0.00038356,120]
[340010179,1728328249184,-500.0,0.00038356,120]
[340010181,1728328249194,-500.0,0.00038356,120]
[340010183,1728328249204,-500.0,0.00038356,120]
[340010185,1728328249214,-500.0,0.00038356,120]
[340010187,1728328249223,-508.46757169,0.00038356,120]
[340010189,1728328249232,-500.0,0.00038356,120]
[340010191,1728328249242,-506.38522752,0.00038356,120]
[340010193,1728328249251,-500.0,0.00038356,120]
[340010195,1728328249260,-234.46911588,0.00038356,120]
[340010197,1728328249269,-500.0,0.00038356,120]
[340010199,1728328249279,-500.0,0.00038356,120]
[340010201,1728328249288,-500.0,0.00038356,120]
[340010203,1728328249297,-500.0,0.00038356,120]
[340010205,1728328249307,-508.3601937,0.00038356,120]
[340010207,1728328249316,-500.0,0.00038356,120]
[340010208,1728328249325,-546.74,0.00038356,120]
[340010210,1728328249343,-500.0,0.00038356,120]
[340010212,1728328249352,-500.0,0.00038356,120]
[340010214,1728328249361,-506.82393636,0.00038356,120]
[340010216,1728328249371,-500.0,0.00038356,120]
[340010218,1728328249381,-500.0,0.00038356,120]
[340010220,1728328249390,-500.0,0.00038356,120]
[340010222,1728328249399,-500.0,0.00038356,120]
[340010224,1728328249409,-500.0,0.00038356,120]
[340010226,1728328249418,-500.0,0.00038356,120]
[340010228,1728328249427,-334.44020128,0.00038356,120]